fUSD/lending_fUSD_20250110
["ID","MTS","AMOUNT","RATE_DAILY","PERIOD"]
[348382031,1736488241213,-2973.66,9.999e-05,2]
[348382032,1736488241223,-500.0,9.999e-05,2]
[348382033,1736488241231,-6498.08,9.999e-05,2]
[348382034,1736488241240,-604.88,9.999e-05,2]
[348382035,1736488241248,-136595.33305612,0.0001,2]
[348382041,1736488243160,-500.0,9.999e-05,2]
[348382042,1736488243169,-1805.8,0.0001,2]
[348382043,1736488243184,-699.5899999,0.0001,2]
[348382044,1736488243195,-424.49932413,0.0001,2]
[348382045,1736488243239,-500.0,9.999e-05,2]
[348382046,1736488243248,-220119.57038687,0.0001,2]
[348382047,1736488244401,-0.35695763,0.0001,2]
[348382048,1736488244428,-2721.28325512,0.0001,2]
[348382049,1736488244481,-500.57827625,0.0001,2]
[348382050,1736488244504,-3953.81927455,0.0001,2]
[348382053,1736488245972,-500.0,9.999e-05,2]
[348382054,1736488245982,-360.92334331,0.0001,2]
[348382055,1736488245993,-4632.07539082,0.0001,2]
[348382056,1736488246194,-57395.95197647,0.0001,2]
[348382057,1736488246258,-8012.21271149,0.0001,2]
[348382058,1736488246271,-1138.28203649,0.0001,2]
[348382059,1736488246282,-1199.4,0.0001,2]
[348382060,1736488750609,1163.88,8.219e-05,2]
[348382064,1736489183282,550.0,0.0002,120]
[348382084,1736489432250,-276.16,8.916e-05,2]
[348382085,1736489432260,-51.94292821,8.986e-05,2]
[348382086,1736489432288,-198.05707179,8.986e-05,2]
[348382087,1736489432298,-794.78292821,9.076e-05,2]
[348382088,1736489432309,-205.21707179,9.076e-05,2]
[348382089,1736489432319,-94.78292821,9.086e-05,2]
[348382090,1736489432345,-205.21707179,9.086e-05,2]
[348382091,1736489432354,-212.76319159,9.128e-05,2]
[348382092,1736489432366,-11.58680841,9.128e-05,2]
[348382093,1736489432378,-511.05225325,9.128e-05,2]
[348382094,1736489432460,-503.1,9.128e-05,2]
[348382095,1736489432521,-366.03,9.128e-05,2]
[348382096,1736489432533,-788.5,9.128e-05,2]
[348382097,1736489432585,-973.99947571,9.128e-05,2]
[348382098,1736489432594,-651.97336585,9.128e-05,2]
[348382099,1736489432603,-651.97336584,9.143e-05,2]
[348382100,1736489432613,-823.57,9.143e-05,2]
[348382101,1736489432623,-322.6286,9.208e-05,2]
[348382102,1736489432633,-250.0,9.224e-05,2]
[348382103,1736489432643,-1384.16,9.285e-05,2]
[348382104,1736489432652,-315.49877252,9.308e-05,2]
[348382109,1736489438228,-3784.9494042,9.308e-05,2]
[348382110,1736489438343,-342.21182328,9.308e-05,2]
[348382111,1736489438352,-276.28262027,9.331e-05,2]
[348382112,1736489438363,-75.76737973,9.331e-05,2]
[348382113,1736489438374,-691.75631537,9.467e-05,2]
[348382114,1736489438383,-509.9466544,9.9e-05,2]
[348382115,1736489438402,-2608.84298789,9.9e-05,2]
[348382130,1736489440162,-1366.80265771,9.9e-05,2]
[348382131,1736489440171,-437.12,9.9e-05,2]
[348382132,1736489440180,-150.0,9.9e-05,2]
[348382133,1736489440190,-300.0,9.9e-05,2]
[348382134,1736489440199,-434.8,9.9e-05,2]
[348382135,1736489440208,-488.0,9.9e-05,3]
[348382136,1736489440217,-1000.0,9.9e-05,2]
[348382137,1736489440226,-1000.0,9.9e-05,2]
[348382138,1736489440235,-1001.0,9.9e-05,2]
[348382139,1736489440245,-1000.0,9.9e-05,2]
[348382140,1736489440254,-1000.0,9.9e-05,2]
[348382141,1736489440264,-1000.0,9.9e-05,2]
[348382142,1736489440274,-1000.0,9.9e-05,2]
[348382143,1736489440284,-150.0,9.931e-05,2]
[348382144,1736489440295,-3606.08324554,9.932e-05,2]
[348382145,1736489440310,-4075.54373049,9.932e-05,2]
[348382146,1736489440329,-326.85,9.932e-05,2]
[348382147,1736489440356,-777.12919889,9.932e-05,2]
[348382148,1736489440426,-1181.79719529,9.932e-05,2]
[348382169,1736489443144,-379.500005,9.932e-05,2]
[348382170,1736489443156,-342.08199988,9.932e-05,2]
[348382171,1736489443260,-632.25531732,9.932e-05,2]
[348382172,1736489443271,-2107.10044256,9.932e-05,2]
[348382173,1736489443371,-3630.14560904,9.932e-05,2]
[348382174,1736489443429,-1234.68439198,9.932e-05,2]
[348382175,1736489443441,-14868.01321538,9.932e-05,2]
[348382184,1736489446322,-315.5451,9.932e-05,2]
[348382185,1736489446396,-164552.40467976,9.932e-05,2]
[348382186,1736489446406,-500.0,9.973e-05,2]
[348382187,1736489446415,-300.0,9.98e-05,2]
[348382188,1736489446424,-437.12,9.98e-05,2]
[348382189,1736489446433,-437.12,9.98e-05,2]
[348382190,1736489446442,-150.0,9.98e-05,2]
[348382191,1736489446451,-3272.546,9.997e-05,2]
[348382192,1736489446460,-162.957,9.997e-05,2]
[348382193,1736489446469,-500.0,9.998e-05,2]
[348382194,1736489446479,-500.0,9.998e-05,2]
[348382195,1736489446487,-500.0,9.998e-05,2]
[348382196,1736489446497,-500.0,9.998e-05,2]
[348382197,1736489446507,-1464.15,9.998e-05,2]
[348382198,1736489446515,-979.73,9.998e-05,2]
[348382199,1736489446524,-654.99,9.998e-05,2]
[348382200,1736489446534,-1694.86,9.998e-05,2]
[348382201,1736489446543,-852.72,9.998e-05,2]
[348382202,1736489446552,-500.0,9.998e-05,2]
[348382203,1736489446561,-649.79,9.998e-05,2]
[348382204,1736489446571,-500.0,9.998e-05,2]
[348382205,1736489446583,-1202.48,9.998e-05,2]
[348382206,1736489446593,-686.43,9.998e-05,2]
[348382207,1736489446602,-681.25,9.998e-05,2]
[348382208,1736489446611,-898.03,9.998e-05,2]
[348382209,1736489446620,-569.83,9.998e-05,2]
[348382210,1736489446629,-500.0,9.998e-05,2]
[348382211,1736489446639,-1860.7,9.998e-05,2]
[348382212,1736489446648,-579.68,9.998e-05,2]
[348382213,1736489446657,-607.68,9.998e-05,2]
[348382214,1736489446666,-800.09,9.998e-05,2]
[348382215,1736489446675,-346.210383,9.999e-05,2]
[348382216,1736489446684,-429.767386,9.999e-05,2]
[348382217,1736489446693,-500.0,9.999e-05,2]
[348382218,1736489446702,-500.0,9.999e-05,2]
[348382219,1736489446711,-500.0,9.999e-05,2]
[348382220,1736489446720,-500.0,9.999e-05,2]
[348382221,1736489446730,-500.0,9.999e-05,2]
[348382222,1736489446739,-500.0,9.999e-05,2]
[348382223,1736489446748,-500.0,9.999e-05,2]
[348382224,1736489446757,-530.32,9.999e-05,2]
[348382225,1736489446766,-500.0,9.999e-05,2]
[348382226,1736489446775,-500.0,9.999e-05,2]
[348382227,1736489446784,-164.59433565,9.999e-05,2]
[348382228,1736489446793,-425.04608625,9.999e-05,2]
[348382229,1736489446802,-500.0,9.999e-05,2]
[348382230,1736489446811,-621.62075146,9.999e-05,2]
[348382231,1736489446820,-500.0,9.999e-05,2]
[348382232,1736489446829,-500.0,9.999e-05,2]
[348382233,1736489446838,-500.0,9.999e-05,2]
[348382234,1736489446847,-500.0,9.999e-05,2]
[348382235,1736489446856,-500.0,9.999e-05,2]
[348382236,1736489446865,-500.0,9.999e-05,2]
[348382237,1736489446874,-500.0,9.999e-05,2]
[348382238,1736489446884,-500.0,9.999e-05,2]
[348382239,1736489446894,-500.0,9.999e-05,2]
[348382240,1736489446903,-543.69935735,9.999e-05,2]
[348382241,1736489446916,-500.0,9.999e-05,2]
[348382242,1736489446925,-500.0,9.999e-05,2]
[348382243,1736489446935,-500.0,9.999e-05,2]
[348382244,1736489446944,-500.0,9.999e-05,2]
[348382245,1736489446954,-500.0,9.999e-05,2]
[348382246,1736489446964,-500.0,9.999e-05,2]
[348382247,1736489446973,-500.0,9.999e-05,2]
[348382248,1736489446983,-644.17,9.999e-05,2]
[348382249,1736489446993,-500.0,9.999e-05,2]
[348382250,1736489447002,-500.0,9.999e-05,2]
[348382251,1736489447012,-500.0,9.999e-05,2]
[348382252,1736489447021,-552.33,9.999e-05,2]
[348382253,1736489447031,-729.75,9.999e-05,2]
[348382254,1736489447040,-500.0,9.999e-05,2]
[348382255,1736489447049,-500.0,9.999e-05,2]
[348382256,1736489447059,-589.66,9.999e-05,2]
[348382257,1736489447068,-500.0,9.999e-05,2]
[348382258,1736489447078,-500.0,9.999e-05,2]
[348382259,1736489447086,-670.83,9.999e-05,2]
[348382260,1736489447095,-500.0,9.999e-05,2]
[348382261,1736489447104,-162.5865851,9.999e-05,2]
[348382262,1736489447113,-500.0,9.999e-05,2]
[348382263,1736489447122,-500.0,9.999e-05,2]
[348382264,1736489447131,-500.0,9.999e-05,2]
[348382265,1736489447141,-500.0,9.999e-05,2]
[348382266,1736489447151,-500.0,9.999e-05,2]
[348382267,1736489447160,-500.0,9.999e-05,2]
[348382268,1736489447169,-500.0,9.999e-05,2]
[348382269,1736489447178,-500.0,9.999e-05,2]
[348382270,1736489447187,-500.0,9.999e-05,2]
[348382271,1736489447196,-588.12,9.999e-05,2]
[348382272,1736489447206,-500.0,9.999e-05,2]
[348382273,1736489447215,-500.0,9.999e-05,2]
[348382274,1736489447224,-640.64798737,9.999e-05,2]
[348382275,1736489447233,-500.0,9.999e-05,2]
[348382276,1736489447242,-500.0,9.999e-05,2]
[348382277,1736489447251,-620.26,9.999e-05,2]
[348382278,1736489447259,-500.0,9.999e-05,2]
[348382279,1736489447269,-500.0,9.999e-05,2]
[348382280,1736489447280,-500.0,9.999e-05,2]
[348382281,1736489447289,-612.91,9.999e-05,2]
[348382282,1736489447300,-500.0,9.999e-05,2]
[348382283,1736489447310,-500.0,9.999e-05,2]
[348382284,1736489447321,-500.0,9.999e-05,2]
[348382285,1736489447330,-500.0,9.999e-05,2]
[348382286,1736489447339,-523.14,9.999e-05,2]
[348382287,1736489447348,-500.0,9.999e-05,2]
[348382288,1736489447356,-500.0,9.999e-05,2]
[348382289,1736489447367,-500.0,9.999e-05,2]
[348382290,1736489447377,-500.0,9.999e-05,2]
[348382291,1736489447386,-659.35,9.999e-05,2]
[348382292,1736489447395,-500.0,9.999e-05,2]
[348382293,1736489447404,-500.0,9.999e-05,2]
[348382294,1736489447413,-500.0,9.999e-05,2]
[348382295,1736489447422,-500.0,9.999e-05,2]
[348382296,1736489447431,-500.0,9.999e-05,2]
[348382297,1736489447440,-588.67,9.999e-05,2]
[348382298,1736489447449,-500.0,9.999e-05,2]
[348382299,1736489447458,-500.0,9.999e-05,2]
[348382300,1736489447468,-979.3,9.999e-05,2]
[348382301,1736489447476,-500.0,9.999e-05,2]
[348382302,1736489447486,-649.08,9.999e-05,2]
[348382303,1736489447495,-681.88,9.999e-05,2]
[348382304,1736489447504,-500.0,9.999e-05,2]
[348382305,1736489447513,-500.0,9.999e-05,2]
[348382306,1736489447524,-500.0,9.999e-05,2]
[348382307,1736489447535,-500.0,9.999e-05,2]
[348382308,1736489447543,-530.82,9.999e-05,2]
[348382309,1736489447554,-723.2,9.999e-05,2]
[348382310,1736489447562,-666.86,9.999e-05,2]
[348382311,1736489447571,-629.98,9.999e-05,2]
[348382312,1736489447580,-500.0,9.999e-05,2]
[348382313,1736489447590,-500.0,9.999e-05,2]
[348382314,1736489447600,-658.69,9.999e-05,2]
[348382315,1736489447610,-1932.54,9.999e-05,2]
[348382316,1736489447619,-753.92,9.999e-05,2]
[348382317,1736489447628,-500.0,9.999e-05,2]
[348382318,1736489447639,-500.0,9.999e-05,2]
[348382319,1736489447648,-500.0,9.999e-05,2]
[348382320,1736489447657,-500.0,9.999e-05,2]
[348382321,1736489447666,-500.0,9.999e-05,2]
[348382322,1736489447675,-500.0,9.999e-05,2]
[348382323,1736489447684,-560.2,9.999e-05,2]
[348382324,1736489447693,-500.0,9.999e-05,2]
[348382325,1736489447703,-500.0,9.999e-05,2]
[348382326,1736489447712,-1222.09,9.999e-05,2]
[348382327,1736489447721,-1193.5,9.999e-05,2]
[348382328,1736489447731,-649.93,9.999e-05,2]
[348382329,1736489447739,-1115.58,9.999e-05,2]
[348382330,1736489447748,-500.0,9.999e-05,2]
[348382331,1736489447757,-500.0,9.999e-05,2]
[348382332,1736489447766,-500.0,9.999e-05,2]
[348382333,1736489447775,-500.0,9.999e-05,2]
[348382334,1736489447784,-571.32,9.999e-05,2]
[348382335,1736489447793,-727.51,9.999e-05,2]
[348382336,1736489447803,-500.0,9.999e-05,2]
[348382337,1736489447812,-678.17,9.999e-05,2]
[348382338,1736489447820,-500.0,9.999e-05,2]
[348382339,1736489447830,-448.82990766,9.999e-05,2]
[348382340,1736489447844,-51.17009234,9.999e-05,2]
[348382341,1736489447854,-500.0,9.999e-05,2]
[348382342,1736489447863,-500.0,9.999e-05,2]
[348382343,1736489447872,-500.0,9.999e-05,2]
[348382344,1736489447881,-1249.88,9.999e-05,2]
[348382345,1736489447891,-500.0,9.999e-05,2]
[348382346,1736489447901,-527.32,9.999e-05,2]
[348382347,1736489447913,-846.79,9.999e-05,2]
[348382348,1736489447923,-500.0,9.999e-05,2]
[348382349,1736489447933,-150.0,9.999e-05,2]
[348382350,1736489447942,-521.18,9.999e-05,2]
[348382351,1736489447952,-2098.04,9.999e-05,2]
[348382352,1736489447962,-768.88,9.999e-05,2]
[348382353,1736489447971,-500.0,9.999e-05,2]
[348382354,1736489447980,-612.8,9.999e-05,2]
[348382355,1736489447990,-1799.17,9.999e-05,2]
[348382356,1736489447999,-500.0,9.999e-05,2]
[348382357,1736489448009,-656.02,9.999e-05,2]
[348382358,1736489448018,-500.0,9.999e-05,2]
[348382359,1736489448027,-2849.76,9.999e-05,2]
[348382360,1736489448037,-500.0,9.999e-05,2]
[348382361,1736489448046,-500.0,9.999e-05,2]
[348382362,1736489448056,-500.0,9.999e-05,2]
[348382363,1736489448066,-808.67,9.999e-05,2]
[348382364,1736489448075,-1279.16,9.999e-05,2]
[348382365,1736489448084,-835.19,9.999e-05,2]
[348382366,1736489448093,-583.74,9.999e-05,2]
[348382367,1736489448102,-2502.48,9.999e-05,2]
[348382368,1736489448111,-500.0,9.999e-05,2]
[348382369,1736489448120,-6227.33,9.999e-05,2]
[348382370,1736489448130,-500.0,9.999e-05,2]
[348382371,1736489448140,-631.98,9.999e-05,2]
[348382372,1736489448149,-500.0,9.999e-05,2]
[348382373,1736489448159,-787.58,9.999e-05,2]
[348382374,1736489448167,-689.67,9.999e-05,2]
[348382375,1736489448177,-1039.89,9.999e-05,2]
[348382376,1736489448186,-500.0,9.999e-05,2]
[348382377,1736489448195,-2224.83,9.999e-05,2]
[348382378,1736489448204,-770.37,9.999e-05,2]
[348382379,1736489448213,-1076.8,9.999e-05,2]
[348382380,1736489448223,-500.0,9.999e-05,2]
[348382381,1736489448232,-508.19,9.999e-05,2]
[348382382,1736489448241,-872.19,9.999e-05,2]
[348382383,1736489448251,-666.7,9.999e-05,2]
[348382384,1736489448260,-628.38,9.999e-05,2]
[348382385,1736489448269,-971.79,9.999e-05,2]
[348382386,1736489448279,-500.0,9.999e-05,2]
[348382387,1736489448292,-500.0,9.999e-05,2]
[348382388,1736489448301,-520.97,9.999e-05,2]
[348382389,1736489448310,-839.68,9.999e-05,2]
[348382390,1736489448319,-866.31,9.999e-05,2]
[348382391,1736489448328,-500.0,9.999e-05,2]
[348382392,1736489448337,-545.43,9.999e-05,2]
[348382393,1736489448346,-500.0,9.999e-05,2]
[348382394,1736489448356,-1505.17,9.999e-05,2]
[348382395,1736489448365,-500.0,9.999e-05,2]
[348382396,1736489448374,-1793.11,9.999e-05,2]
[348382397,1736489448384,-558.65,9.999e-05,2]
[348382398,1736489448394,-626.29,9.999e-05,2]
[348382399,1736489448403,-591.9,9.999e-05,2]
[348382400,1736489448412,-839.53,9.999e-05,2]
[348382401,1736489448421,-500.0,9.999e-05,2]
[348382402,1736489448431,-568.8,9.999e-05,2]
[348382403,1736489448440,-534.68,9.999e-05,2]
[348382404,1736489448449,-2330.29,9.999e-05,2]
[348382405,1736489448459,-929.16,9.999e-05,2]
[348382406,1736489448467,-500.0,9.999e-05,2]
[348382407,1736489448476,-2279.52,9.999e-05,2]
[348382408,1736489448485,-500.0,9.999e-05,2]
[348382409,1736489448494,-500.0,9.999e-05,2]
[348382410,1736489448503,-3666.42,9.999e-05,2]
[348382411,1736489448512,-1268.9,9.999e-05,2]
[348382412,1736489448521,-512.79,9.999e-05,2]
[348382413,1736489448530,-543.46,9.999e-05,2]
[348382414,1736489448539,-811.97,9.999e-05,2]
[348382415,1736489448548,-725.52,9.999e-05,2]
[348382416,1736489448557,-500.0,9.999e-05,2]
[348382417,1736489448566,-1372.06,9.999e-05,2]
[348382418,1736489448575,-500.0,9.999e-05,2]
[348382419,1736489448584,-500.0,9.999e-05,2]
[348382420,1736489448593,-808.54,9.999e-05,2]
[348382421,1736489448602,-793.03,9.999e-05,2]
[348382422,1736489448611,-500.0,9.999e-05,2]
[348382423,1736489448620,-1152.57,9.999e-05,2]
[348382424,1736489448630,-847.97,9.999e-05,2]
[348382425,1736489448642,-520.52,9.999e-05,2]
[348382426,1736489448651,-1648.27,9.999e-05,2]
[348382427,1736489448660,-1111.7,9.999e-05,2]
[348382428,1736489448669,-773.51,9.999e-05,2]
[348382429,1736489448678,-500.0,9.999e-05,2]
[348382430,1736489448687,-1242.27,9.999e-05,2]
[348382431,1736489448696,-2386.04,9.999e-05,2]
[348382432,1736489448705,-528.03,9.999e-05,2]
[348382433,1736489448714,-500.0,9.999e-05,2]
[348382434,1736489448723,-3869.75,9.999e-05,2]
[348382435,1736489448733,-564.48,9.999e-05,2]
[348382436,1736489448742,-500.0,9.999e-05,2]
[348382437,1736489448751,-679.47,9.999e-05,2]
[348382438,1736489448760,-878.54,9.999e-05,2]
[348382439,1736489448769,-500.0,9.999e-05,2]
[348382440,1736489448778,-500.0,9.999e-05,2]
[348382441,1736489448787,-1083.32,9.999e-05,2]
[348382442,1736489448796,-510.97,9.999e-05,2]
[348382443,1736489448805,-844.21,9.999e-05,2]
[348382444,1736489448814,-500.0,9.999e-05,2]
[348382445,1736489448823,-500.0,9.999e-05,2]
[348382446,1736489448832,-2128.03,9.999e-05,2]
[348382447,1736489448841,-743.91,9.999e-05,2]
[348382448,1736489448850,-540.12,9.999e-05,2]
[348382449,1736489448860,-500.0,9.999e-05,2]
[348382450,1736489448869,-694.96,9.999e-05,2]
[348382451,1736489448879,-788.37,9.999e-05,2]
[348382452,1736489448889,-740.76,9.999e-05,2]
[348382453,1736489448898,-556.12282881,9.999e-05,2]
[348382454,1736489448911,-500.0,9.999e-05,2]
[348382455,1736489448919,-500.0,9.999e-05,2]
[348382456,1736489448929,-1254.64,9.999e-05,2]
[348382457,1736489448937,-500.0,9.999e-05,2]
[348382458,1736489448947,-500.0,9.999e-05,2]
[348382459,1736489448957,-500.0,9.999e-05,2]
[348382460,1736489448966,-500.0,9.999e-05,2]
[348382461,1736489448976,-500.0,9.999e-05,2]
[348382462,1736489448985,-500.0,9.999e-05,2]
[348382463,1736489448995,-500.0,9.999e-05,2]
[348382464,1736489449004,-500.0,9.999e-05,2]
[348382465,1736489449014,-577.57,9.999e-05,2]
[348382466,1736489449024,-123129.27829736,0.0001,2]
[348382467,1736489449044,-385.0,0.0001,2]
[348382468,1736489486012,100000.0,0.0002,120]
[348382469,1736489775811,1189.55,8.219e-05,2]
[348382471,1736490323307,150.0,8.338e-05,2]
[348382480,1736490463676,-150.0,8.691e-05,2]
[348382525,1736490632431,-250.0,8.955e-05,2]
[348382526,1736490632441,-250.0,8.966e-05,2]
[348382527,1736490632451,-418.83,9.094e-05,2]
[348382528,1736490632460,-1097.01,9.096e-05,2]
[348382529,1736490632470,-591.54371863,9.135e-05,2]
[348382530,1736490632517,-408.45628137,9.135e-05,2]
[348382531,1736490632527,-3300.85059992,9.152e-05,2]
[348382532,1736490632538,-647.94212655,9.152e-05,2]
[348382533,1736490632622,-378.98345466,9.152e-05,2]
[348382534,1736490632634,-601.7404142,9.152e-05,2]
[348382535,1736490632705,-7591.2113903,9.152e-05,2]
[348382536,1736490632717,-1485.22201437,9.152e-05,2]
[348382537,1736490632727,-250.0,9.34e-05,2]
[348382538,1736490632736,-226.4,9.366e-05,2]
[348382539,1736490632746,-1907.79,9.478e-05,2]
[348382540,1736490632756,-437.05,9.478e-05,2]
[348382541,1736490632766,-150.0,9.478e-05,2]
[348382542,1736490632776,-150.0,9.478e-05,2]
[348382543,1736490632786,-437.12,9.478e-05,2]
[348382545,1736490632796,-156.25,9.5e-05,2]
[348382547,1736490632806,-150.0,9.578e-05,2]
[348382549,1736490632816,-437.12,9.578e-05,2]
[348382551,1736490632826,-2664.42,9.589e-05,2]
[348382553,1736490632835,-150.0,9.743e-05,2]
[348382555,1736490632845,-150.0,9.752e-05,2]
[348382557,1736490632855,-150.0,9.752e-05,2]
[348382559,1736490632865,-155.88653753,9.764e-05,2]
[348382561,1736490632874,-150.0,9.83e-05,2]
[348382563,1736490632883,-241.26,9.852e-05,2]
[348382565,1736490632893,-150.0,9.899e-05,2]
[348382567,1736490632902,-20137.97440458,9.9e-05,2]
[348382698,1736490638796,-914.94104856,9.9e-05,2]
[348382702,1736490638836,-32139.08454686,9.9e-05,2]
[348382704,1736490638847,-357.73785629,9.91e-05,2]
[348382705,1736490638858,-5316.0,9.973e-05,2]
[348382706,1736490638868,-150.0,9.975e-05,2]
[348382707,1736490638881,-3779.15945702,9.987e-05,2]
[348382708,1736490638891,-29611.06918849,9.988e-05,2]
[348382709,1736490638903,-3779.15945702,9.991e-05,2]
[348382710,1736490638914,-3779.15945702,9.991e-05,2]
[348382711,1736490638925,-11344.8006978,9.992e-05,2]
[348382712,1736490638937,-1721.4763375,9.992e-05,2]
[348382713,1736490638949,-3779.15945702,9.993e-05,2]
[348382714,1736490638960,-558.657698,9.997e-05,2]
[348382715,1736490638970,-1572.05,9.997e-05,2]
[348382716,1736490638983,-2251.74,9.997e-05,2]
[348382717,1736490638995,-1048.59,9.997e-05,2]
[348382718,1736490639005,-731.87,9.997e-05,2]
[348382719,1736490639017,-1809.14,9.997e-05,2]
[348382720,1736490639029,-500.0,9.997e-05,2]
[348382721,1736490639040,-500.0,9.997e-05,2]
[348382722,1736490639050,-726.89,9.997e-05,2]
[348382723,1736490639062,-500.0,9.997e-05,2]
[348382724,1736490639072,-1256.54,9.997e-05,2]
[348382725,1736490639083,-500.0,9.997e-05,2]
[348382726,1736490639093,-500.0,9.997e-05,2]
[348382727,1736490639105,-696.43,9.997e-05,2]
[348382728,1736490639116,-500.0,9.997e-05,2]
[348382729,1736490639127,-500.0,9.997e-05,2]
[348382730,1736490639138,-1956.84,9.997e-05,2]
[348382731,1736490639150,-500.0,9.997e-05,2]
[348382732,1736490639160,-900.52,9.998e-05,2]
[348382733,1736490639171,-741.17,9.998e-05,2]
[348382734,1736490639183,-870.92,9.998e-05,2]
[348382735,1736490639195,-1173.27,9.998e-05,2]
[348382736,1736490639206,-874.01,9.998e-05,2]
[348382737,1736490639218,-837.47,9.998e-05,2]
[348382738,1736490639229,-500.0,9.998e-05,2]
[348382739,1736490639240,-500.0,9.998e-05,2]
[348382740,1736490639254,-1059.07,9.998e-05,2]
[348382741,1736490639266,-500.0,9.998e-05,2]
[348382742,1736490639278,-500.0,9.998e-05,2]
[348382743,1736490639288,-500.0,9.998e-05,2]
[348382744,1736490639300,-964.78,9.998e-05,2]
[348382745,1736490639310,-679.83,9.998e-05,2]
[348382746,1736490639321,-500.0,9.998e-05,2]
[348382747,1736490639332,-500.0,9.998e-05,2]
[348382748,1736490639343,-1812.6,9.998e-05,2]
[348382749,1736490639354,-500.0,9.998e-05,2]
[348382750,1736490639366,-618.03,9.998e-05,2]
[348382751,1736490639376,-500.0,9.998e-05,2]
[348382752,1736490639386,-500.0,9.998e-05,2]
[348382753,1736490639397,-500.0,9.998e-05,2]
[348382754,1736490639407,-761.84,9.998e-05,2]
[348382755,1736490639417,-500.0,9.998e-05,2]
[348382756,1736490639428,-585.93,9.998e-05,2]
[348382757,1736490639438,-500.0,9.998e-05,2]
[348382758,1736490639448,-500.0,9.998e-05,2]
[348382759,1736490639459,-500.0,9.998e-05,2]
[348382760,1736490639469,-705.38,9.998e-05,2]
[348382761,1736490639480,-500.0,9.998e-05,2]
[348382762,1736490639490,-1295.32,9.998e-05,2]
[348382763,1736490639504,-500.0,9.998e-05,2]
[348382764,1736490639516,-626.12,9.998e-05,2]
[348382765,1736490639529,-500.0,9.998e-05,2]
[348382766,1736490639541,-500.0,9.998e-05,2]
[348382767,1736490639553,-500.0,9.998e-05,2]
[348382768,1736490639564,-500.0,9.998e-05,2]
[348382769,1736490639578,-500.0,9.998e-05,2]
[348382770,1736490639590,-500.0,9.998e-05,2]
[348382771,1736490639601,-500.0,9.998e-05,2]
[348382772,1736490639613,-500.0,9.998e-05,2]
[348382773,1736490639624,-500.0,9.998e-05,2]
[348382774,1736490639636,-500.0,9.998e-05,2]
[348382775,1736490639649,-500.0,9.998e-05,2]
[348382776,1736490639661,-500.0,9.998e-05,2]
[348382777,1736490639673,-875.14,9.998e-05,2]
[348382778,1736490639686,-500.0,9.998e-05,2]
[348382779,1736490639698,-500.0,9.998e-05,2]
[348382780,1736490639709,-500.0,9.998e-05,2]
[348382781,1736490639720,-449.748735,9.998e-05,2]
[348382782,1736490639731,-500.0,9.998e-05,2]
[348382783,1736490639743,-500.0,9.998e-05,2]
[348382784,1736490639755,-161.169967,9.998e-05,2]
[348382785,1736490639766,-500.0,9.998e-05,2]
[348382786,1736490639778,-500.0,9.998e-05,2]
[348382787,1736490639789,-656.92,9.998e-05,2]
[348382788,1736490639800,-156.482529,9.998e-05,2]
[348382789,1736490639811,-500.0,9.998e-05,2]
[348382790,1736490639822,-500.0,9.998e-05,2]
[348382791,1736490639833,-500.0,9.998e-05,2]
[348382792,1736490639844,-649.87,9.998e-05,2]
[348382793,1736490639855,-500.0,9.998e-05,2]
[348382794,1736490639866,-500.0,9.998e-05,2]
[348382795,1736490639878,-526.48,9.998e-05,2]
[348382796,1736490639889,-380.805758,9.998e-05,2]
[348382797,1736490639900,-2850.63,9.998e-05,2]
[348382798,1736490639911,-701.51,9.998e-05,2]
[348382799,1736490639922,-500.0,9.998e-05,2]
[348382800,1736490639932,-500.0,9.998e-05,2]
[348382801,1736490639943,-604.49716216,9.998e-05,2]
[348382802,1736490639955,-694.37,9.998e-05,2]
[348382803,1736490639966,-453.74269608,9.998e-05,2]
[348382804,1736490639977,-500.0,9.998e-05,2]